[Event "Chile-ch Women 2019"]
[Site "Santiago Las Condes"]
[Date "2019.02.16"]
[Round "8.5"]
[White "Lemus Pena, Macarena"]
[Black "Ruiz Olate, Emily Andrea"]
[Result "0-1"]
[ECO "A15"]
[WhiteElo "1757"]
[BlackElo "1892"]
[Annotator "NA RC"]
[PlyCount "60"]
[EventDate "2019.02.12"]
[EventType "swiss"]
[EventCountry "CHI"]
[SourceTitle "playchess.com"]
[Source "ChessBase"]
[SourceQuality "1"]
[TimeControl "5400+30"]

1. Nf3 {[%emt 0:00:00]} Nf6 {[%emt 0:00:00]} 2. c4 {[%emt 0:00:00]} g6 {[%emt 0:00:00]} 3. b4 {[%emt 0:00:00]} Bg7 {[%emt 0:00:12]} 4. Bb2 {[%emt 0:00:00]} d5 {[%emt 0:04:43]} (4... O-O 5. e3 d6 6. Be2 e5 7. d3 e4 8. dxe4 Nxe4 9. Qc1 Nd7 10. Bxg7 Kxg7 11. Nbd2 Nxd2 12. Qxd2 a5 13. b5 b6 14. Nd4 Bb7 15. Bf3 Bxf3 16. Nxf3 {½-½ (58) Kuzubov,Y (2647)-Kokarev,D (2608) Linares 2018}) 5. cxd5 {[%emt 0:00:29]} Qxd5 {[%emt 0:00:10]} 6. Nc3 {[%emt 0:00:07] A15: English Opening: 1...Nf6} Qd8 {[%emt 0:00:21]} 7. e3 {[%emt 0:02:31]} O-O {[%emt 0:03:56]} 8. b5 $146 {[%emt 0:04:35]} ({Predecessor:} 8. Be2 Nbd7 9. O-O e5 10. d3 c6 11. a4 b6 12. Qb3 Re8 13. Rfd1 Qe7 {1-0 (41) Kurajica,B (2529)-Firat,B (2487) Izmir 2016}) 8... a6 {[%emt 0:02:50]} 9. a4 {[%emt 0:04:13]} axb5 {[%emt 0:00:14]} 10. axb5 {[%emt 0:00:07]} Rxa1 {[%emt 0:00:05]} 11. Qxa1 {[%emt 0:00:31]} Bf5 {[%emt 0:13:11]} 12. d4 {[%emt 0:01:04]} Nbd7 {[%emt 0:03:12]} 13. Be2 {[%emt 0:00:25]} Nb6 {[%emt 0:00:17]} 14. O-O {[%emt 0:02:10]} Be6 {[%emt 0:09:11]} 15. Ne5 {[%emt 0:05:28]} Nfd7 {[%emt 0:04:35]} 16. Na4 {[%emt 0:00:48]} Nxa4 {[%emt 0:00:40]} 17. Qxa4 {[%emt 0:00:09]} Nxe5 {[%emt 0:00:20]} 18. dxe5 {[%emt 0:00:07]} Qd2 {[%emt 0:00:30]} 19. Ba3 {[%emt 0:15:17]} Qxe2 {[%emt 0:01:20]} 20. Bxe7 {[%emt 0:01:44]} Bc4 {[%emt 0:01:48]} 21. Rb1 {[%emt 0:07:23]} Re8 {[%emt 0:01:40]} 22. Bf6 {[%emt 0:01:30]} Bxf6 {[%emt 0:05:10]} 23. exf6 {[%emt 0:00:09]} Rd8 {[%emt 0:00:25]} 24. h3 {[%emt 0:01:28]} h5 {[%emt 0:02:33]} 25. Rc1 {[%emt 0:01:35]} Bxb5 {[%emt 0:01:35]} 26. Qf4 {[%emt 0:00:37]} Kh7 {[%emt 0:09:27]} (26... Rd1+ $142 27. Rxd1 Qxd1+ 28. Kh2 Qd6 29. Qxd6 cxd6) 27. Rxc7 {[%emt 0:00:36]} Qd1+ {[%emt 0:02:59]} 28. Kh2 {[%emt 0:00:08]} Rd7 $19 {[%emt 0:00:23]} 29. Rc5 {[%emt 0:08:11]} Bc6 {[%emt 0:03:41]} 30. Rxh5+ {[%emt 0:01:56]} Qxh5 {[%emt 0:00:18]} 0-1

[Event "Chile-ch Women 2019"]
[Site "Santiago Las Condes"]
[Date "2019.02.16"]
[Round "8.6"]
[White "Manriquez Abarzua, Maria Belen"]
[Black "Vildosola Canales, Melany"]
[Result "1/2-1/2"]
[ECO "B30"]
[WhiteElo "1650"]
[BlackElo "1531"]
[Annotator "NA RC"]
[PlyCount "65"]
[EventDate "2019.02.12"]
[EventType "swiss"]
[EventCountry "CHI"]
[SourceTitle "playchess.com"]
[Source "ChessBase"]
[SourceQuality "1"]
[TimeControl "5400+30"]

1. e4 {[%emt 0:00:00]} c5 {[%emt 0:00:01]} 2. Nf3 {[%emt 0:00:00]} Nc6 {[%emt 0:00:05]} 3. Bb5 {[%emt 0:00:00]} Nf6 {[%emt 0:00:06]} 4. e5 {[%emt 0:00:23]} Nd5 {[%emt 0:00:06]} 5. Nc3 {[%emt 0:00:08]} Nc7 {[%emt 0:00:10]} 6. Bxc6 {[%emt 0:00:10]} dxc6 {[%emt 0:00:14]} 7. Ne4 {[%emt 0:04:12]} b6 {[%emt 0:09:33]} 8. d3 {[%emt 0:02:54]} Bg4 {[%emt 0:02:52]} 9. Qe2 {[%emt 0:06:03]} Ne6 {[%emt 0:08:04]} 10. c3 {[%emt 0:03:04]} Qc7 {[%emt 0:09:00]} 11. Ng3 {[%emt 0:08:26]} g6 {[%emt 0:09:29]} 12. O-O {[%emt 0:08:21]} Bg7 {[%emt 0:03:45]} 13. Re1 {[%emt 0:01:28]} O-O {[%emt 0:07:56]} 14. Qe4 {[%emt 0:13:13]} Bxf3 {[%emt 0:08:05]} 15. gxf3 {[%emt 0:00:11]} Qd7 {[%emt 0:02:45]} 16. f4 {[%emt 0:04:13]} Qd5 {[%emt 0:04:11]} 17. f5 {[%emt 0:05:26]} Qxe4 {[%emt 0:06:21]} 18. Rxe4 {[%emt 0:03:22]} Nc7 {[%emt 0:00:36]} 19. fxg6 {[%emt 0:03:33]} fxg6 {[%emt 0:03:02]} 20. Bg5 {[%emt 0:00:28]} e6 {[%emt 0:03:30]} 21. Rd1 {[%emt 0:02:15]} Rf3 {[%emt 0:05:28]} 22. Be7 {[%emt 0:15:45]} Nd5 {[%emt 0:03:05]} 23. Kg2 {[%emt 0:02:24]} Rxg3+ {[%emt 0:04:50]} 24. hxg3 {[%emt 0:00:03]} Nxe7 {[%emt 0:00:10]} 25. f4 {[%emt 0:05:28]} Rd8 {[%emt 0:01:29]} 26. Ra4 {[%emt 0:00:53]} a5 {[%emt 0:00:42]} 27. d4 {[%emt 0:00:31]} Nf5 {[%emt 0:00:57]} 28. Kf3 {[%emt 0:00:43]} Bf8 {[%emt 0:00:54]} 29. g4 {[%emt 0:03:00]} Ng7 {[%emt 0:00:47]} 30. Ke4 {[%emt 0:02:20]} Be7 {[%emt 0:03:24]} 31. Rf1 {[%emt 0:00:41]} cxd4 {[%emt 0:00:24]} 32. cxd4 {[%emt 0:02:03]} Bb4 {[%emt 0:00:39]} 33. Rc1 {[%emt 0:02:16]} 1/2-1/2

[Event "Chile-ch Women 2019"]
[Site "Santiago Las Condes"]
[Date "2019.02.16"]
[Round "8.7"]
[White "Romero Troncoso, Liset Anais"]
[Black "Yanez Araya, Josefa"]
[Result "1-0"]
[ECO "C00"]
[WhiteElo "1604"]
[BlackElo "1688"]
[Annotator "NA RC"]
[PlyCount "87"]
[EventDate "2019.02.12"]
[EventType "swiss"]
[EventCountry "CHI"]
[SourceTitle "playchess.com"]
[Source "ChessBase"]
[SourceQuality "1"]
[TimeControl "5400+30"]

1. e4 {[%emt 0:00:45]} e6 {[%emt 0:00:00]} 2. d3 {[%emt 0:00:08]} d5 {[%emt 0:00:00]} 3. Nd2 {[%emt 0:00:07]} Nf6 {[%emt 0:00:14]} 4. Ngf3 {[%emt 0:00:11]} Bc5 {[%emt 0:00:13]} 5. e5 {[%emt 0:01:49]} Ng4 {[%emt 0:01:43]} 6. d4 {[%emt 0:00:32]} Bb6 {[%emt 0:00:43]} 7. Nb3 {[%emt 0:02:13]} h5 {[%emt 0:07:11]} 8. Bd3 {[%emt 0:02:19]} Nc6 {[%emt 0:04:31]} 9. c3 {[%emt 0:00:42]} Bd7 {[%emt 0:01:16]} 10. O-O {[%emt 0:01:05]} Qe7 {[%emt 0:01:47]} 11. Bg5 {[%emt 0:05:47]} Qf8 {[%emt 0:04:00]} 12. Nh4 {[%emt 0:20:40]} Ne7 {[%emt 0:01:08]} 13. Bf4 {[%emt 0:03:22]} O-O-O {[%emt 0:02:00]} 14. a4 {[%emt 0:00:16]} a6 {[%emt 0:00:50]} 15. Nc5 {[%emt 0:03:35]} Bxc5 {[%emt 0:01:24]} 16. dxc5 {[%emt 0:00:06]} Nc6 {[%emt 0:06:43]} 17. b4 {[%emt 0:09:16]} Ncxe5 {[%emt 0:05:37]} 18. b5 {[%emt 0:01:44]} a5 {[%emt 0:03:23]} 19. c6 {[%emt 0:02:24]} Be8 {[%emt 0:02:47]} 20. cxb7+ {[%emt 0:00:52]} Kxb7 {[%emt 0:00:18]} 21. Be2 {[%emt 0:00:30]} Qe7 {[%emt 0:02:28]} 22. Nf3 {[%emt 0:01:19]} Nxf3+ {[%emt 0:01:01]} 23. Bxf3 {[%emt 0:00:07]} g5 {[%emt 0:01:17]} 24. Bd2 {[%emt 0:00:49]} f6 {[%emt 0:07:21]} 25. c4 {[%emt 0:01:42]} Ne5 {[%emt 0:01:43]} 26. Bxa5 {[%emt 0:01:42]} Nxc4 {[%emt 0:01:51]} 27. Bc3 {[%emt 0:00:32]} Ra8 {[%emt 0:06:28]} 28. Qe2 {[%emt 0:04:10]} c6 {[%emt 0:07:04]} 29. Rfb1 {[%emt 0:04:01]} Kc7 {[%emt 0:05:22]} 30. bxc6 {[%emt 0:05:58]} Bxc6 {[%emt 0:00:38]} 31. Bxh5 {[%emt 0:04:18]} e5 {[%emt 0:05:22]} 32. Bg4 {[%emt 0:01:27]} Qh7 {[%emt 0:01:21]} 33. h3 {[%emt 0:01:07]} Rhe8 {[%emt 0:02:29]} 34. Qd1 {[%emt 0:02:57]} f5 {[%emt 0:03:37]} 35. Be2 {[%emt 0:02:08]} g4 {[%emt 0:04:13]} 36. Bxc4 {[%emt 0:05:40]} dxc4 {[%emt 0:00:11]} 37. Qe2 {[%emt 0:00:27]} gxh3 {[%emt 0:02:39]} 38. Bxe5+ {[%emt 0:00:47]} Kc8 {[%emt 0:05:08]} 39. Qxc4 {[%emt 0:01:11]} Qg6 {[%emt 0:00:51]} 40. Bg3 {[%emt 0:02:08]} hxg2 {[%emt 0:00:42]} 41. Rb6 {[%emt 0:01:50]} Re6 {[%emt 0:01:13]} 42. Qf4 {[%emt 0:00:52]} Qg7 {[%emt 0:01:10]} 43. Rb8+ {[%emt 0:00:26]} Kd7 {[%emt 0:00:59]} 44. Qc7# {[%emt 0:07:59]} 1-0

[Event "Chile-ch Women 2019"]
[Site "Santiago Las Condes"]
[Date "2019.02.16"]
[Round "8.8"]
[White "Vargas Banda, Valentina"]
[Black "Varela Varas, Patricia"]
[Result "0-1"]
[ECO "C77"]
[WhiteElo "1682"]
[BlackElo "1540"]
[Annotator "NA RC"]
[PlyCount "100"]
[EventDate "2019.02.12"]
[EventType "swiss"]
[EventCountry "CHI"]
[SourceTitle "playchess.com"]
[Source "ChessBase"]
[SourceQuality "1"]
[TimeControl "5400+30"]

1. e4 {[%emt 0:02:34]} e5 {[%emt 0:00:00]} 2. Nf3 {[%emt 0:00:10]} Nc6 {[%emt 0:00:00]} 3. Bb5 {[%emt 0:00:19]} a6 {[%emt 0:00:00]} 4. Ba4 {[%emt 0:00:11]} b5 {[%emt 0:00:00]} 5. Bb3 {[%emt 0:00:11]} Nf6 {[%emt 0:00:00]} 6. d3 {[%emt 0:00:56]} h6 {[%emt 0:03:16]} 7. c3 {[%emt 0:01:10]} Bc5 {[%emt 0:02:54]} 8. Nbd2 {[%emt 0:02:16]} d6 {[%emt 0:00:30]} 9. O-O {[%emt 0:01:24]} O-O {[%emt 0:00:27]} 10. Re1 {[%emt 0:08:30]} Bb7 {[%emt 0:01:42]} 11. Nf1 {[%emt 0:02:26]} Ne7 {[%emt 0:00:48]} 12. a4 {[%emt 0:05:44]} Ng6 {[%emt 0:03:25]} 13. axb5 {[%emt 0:07:38]} axb5 {[%emt 0:00:21]} 14. Rxa8 {[%emt 0:00:06]} Qxa8 {[%emt 0:00:27]} 15. Be3 {[%emt 0:02:16]} Bxe3 {[%emt 0:02:48]} 16. fxe3 {[%emt 0:03:30]} d5 {[%emt 0:05:41]} 17. exd5 {[%emt 0:02:10]} Bxd5 {[%emt 0:00:22]} 18. Ng3 {[%emt 0:14:07]} Rd8 {[%emt 0:07:11]} 19. d4 {[%emt 0:03:23]} exd4 {[%emt 0:10:46]} 20. exd4 {[%emt 0:00:42]} Bxf3 {[%emt 0:01:10]} 21. Qxf3 {[%emt 0:03:45]} Qxf3 {[%emt 0:03:58]} 22. gxf3 {[%emt 0:01:25]} b4 {[%emt 0:04:10]} 23. Ne4 {[%emt 0:06:09]} Nh5 {[%emt 0:02:55]} 24. Nc5 {[%emt 0:03:54]} Nhf4 {[%emt 0:02:45]} 25. Na6 {[%emt 0:10:00]} Nd3 {[%emt 0:06:22]} 26. Re3 {[%emt 0:03:40]} Nxb2 {[%emt 0:06:44]} 27. Nxb4 {[%emt 0:00:34]} Ra8 {[%emt 0:03:44]} 28. Kf2 {[%emt 0:03:56]} Kf8 {[%emt 0:02:53]} 29. Re2 {[%emt 0:00:27]} Na4 {[%emt 0:01:27]} 30. Ra2 {[%emt 0:09:09]} Nb6 {[%emt 0:00:44]} 31. Rxa8+ {[%emt 0:00:22]} Nxa8 {[%emt 0:00:06]} 32. Ke3 {[%emt 0:00:22]} Ne7 {[%emt 0:03:27]} 33. Ke4 {[%emt 0:00:41]} Nb6 {[%emt 0:01:56]} 34. c4 {[%emt 0:01:20]} Nd7 {[%emt 0:08:47]} 35. Na6 {[%emt 0:00:58]} f5+ {[%emt 0:04:43]} 36. Kd3 {[%emt 0:00:37]} c6 {[%emt 0:01:58]} 37. Nc7 {[%emt 0:00:33]} g5 {[%emt 0:03:53]} 38. Ba4 {[%emt 0:00:24]} Nb6 {[%emt 0:02:22]} 39. Bd1 {[%emt 0:00:26]} Nd7 {[%emt 0:00:38]} 40. c5 {[%emt 0:00:50]} Nd5 {[%emt 0:00:43]} 41. Nxd5 {[%emt 0:00:23]} cxd5 {[%emt 0:00:05]} 42. Ke3 {[%emt 0:00:31]} f4+ {[%emt 0:00:45]} 43. Kd3 {[%emt 0:00:21]} Ke7 {[%emt 0:00:18]} 44. Be2 {[%emt 0:00:36]} Nb8 {[%emt 0:00:31]} 45. Bd1 {[%emt 0:00:32]} Kd8 {[%emt 0:01:41]} 46. Bb3 {[%emt 0:00:16]} Nc6 {[%emt 0:01:07]} 47. Bxd5 {[%emt 0:00:15]} Nb4+ {[%emt 0:00:18]} 48. Ke4 {[%emt 0:00:27]} Nxd5 {[%emt 0:00:28]} 49. Kxd5 {[%emt 0:00:42]} g4 {[%emt 0:00:04]} 50. Ke6 {[%emt 0:00:58]} gxf3 {[%emt 0:00:13]} 0-1

[Event "Chile-ch Women 2019"]
[Site "Santiago Las Condes"]
[Date "2019.02.17"]
[Round "9.1"]
[White "Abarca Gonzalez, Damaris"]
[Black "Reyes Jara, Paula"]
[Result "1/2-1/2"]
[ECO "C55"]
[WhiteElo "2039"]
[BlackElo "1955"]
[Annotator "NA"]
[PlyCount "38"]
[EventDate "2019.02.12"]
[EventType "swiss"]
[EventCountry "CHI"]
[SourceTitle "playchess.com"]
[Source "ChessBase"]
[SourceQuality "1"]
[TimeControl "5400+30"]

1. e4 {[%emt 0:00:00]} e5 {[%emt 0:00:28]} 2. Nf3 {[%emt 0:00:00]} Nc6 {[%emt 0:00:19]} 3. Bc4 {[%emt 0:00:00]} Be7 {[%emt 0:00:34]} 4. d4 {[%emt 0:00:39]} d6 {[%emt 0:01:23]} 5. O-O {[%emt 0:00:49]} Nf6 {[%emt 0:04:53]} 6. dxe5 {[%emt 0:03:30]} Nxe5 {[%emt 0:03:35]} 7. Nxe5 {[%emt 0:00:32]} dxe5 {[%emt 0:00:05]} 8. Qe2 {[%emt 0:00:20] C55: Two Knights: 4 d3, 4 d4 exd4 5 e5 and Max Lange Attack} Qd4 {[%emt 0:04:14]} (8... c6 9. Rd1 Qc7 10. b3 O-O 11. Bb2 Bg4 12. f3 Bd7 13. a4 Rfd8 14. Nd2 Bc5+ 15. Kh1 Be8 {0-1 (48) Hector,J (2501)-Semcesen,D (2464) Malmo 2018}) 9. Nc3 {[%emt 0:01:56]} Bg4 {[%emt 0:00:06]} 10. Qd3 {[%emt 0:00:21]} Rd8 $146 {[%emt 0:00:59]} ({Predecessor:} 10... c6 11. h3 Bh5 12. Be3 Qxd3 13. Bxd3 O-O 14. g4 Bg6 15. f3 Nd7 {0-1 (45) Cintra,R (1839)-Santana,A (2096) Batatais 2011}) 11. Be3 {[%emt 0:04:48]} Qxd3 {[%emt 0:01:55]} 12. Bxd3 {[%emt 0:02:59]} a6 {[%emt 0:02:20]} 13. a4 {[%emt 0:01:53]} O-O {[%emt 0:00:36]} 14. Bc4 {[%emt 0:01:30]} c6 {[%emt 0:06:03]} 15. f3 {[%emt 0:00:37]} Bh5 {[%emt 0:00:14]} 16. Bb6 {[%emt 0:10:34]} Rd7 {[%emt 0:00:06]} 17. Rfd1 {[%emt 0:01:53]} Bb4 {[%emt 0:03:33]} 18. g4 {[%emt 0:02:40]} Bg6 {[%emt 0:05:08]} 19. g5 {[%emt 0:02:08]} Rxd1+ 1/2-1/2

[Event "Chile-ch Women 2019"]
[Site "Santiago Las Condes"]
[Date "2019.02.17"]
[Round "9.2"]
[White "Jorquera Cabello, Valentina"]
[Black "Arbunic Castro, Giovanna"]
[Result "1/2-1/2"]
[ECO "B01"]
[WhiteElo "2016"]
[BlackElo "1995"]
[Annotator "NA"]
[PlyCount "64"]
[EventDate "2019.02.12"]
[EventType "swiss"]
[EventCountry "CHI"]
[SourceTitle "playchess.com"]
[Source "ChessBase"]
[SourceQuality "1"]
[TimeControl "5400+30"]

1. e4 {[%emt 0:00:00]} d5 {[%emt 0:00:00]} 2. exd5 {[%emt 0:00:00]} Qxd5 {[%emt 0:00:00]} 3. Nc3 {[%emt 0:00:00]} Qa5 {[%emt 0:00:00]} 4. d4 {[%emt 0:00:18]} Nf6 {[%emt 0:00:00]} 5. Bc4 {[%emt 0:00:37]} c6 {[%emt 0:00:07]} 6. Nf3 {[%emt 0:00:04]} Bg4 {[%emt 0:00:13]} 7. h3 {[%emt 0:00:41]} Bh5 {[%emt 0:00:08]} 8. g4 {[%emt 0:00:45]} Bg6 {[%emt 0:00:05]} 9. Ne5 {[%emt 0:00:05]} Nbd7 {[%emt 0:00:06]} 10. Nxg6 {[%emt 0:00:09] B01: Scandinavian Defence} hxg6 {[%emt 0:00:07]} 11. Bd2 {[%emt 0:10:57]} Qc7 {[%emt 0:01:05]} 12. Qe2 {[%emt 0:00:59]} e6 {[%emt 0:01:27]} 13. d5 {[%emt 0:10:15]} cxd5 {[%emt 0:01:20]} 14. Nxd5 {[%emt 0:00:32]} Nxd5 {[%emt 0:00:25]} 15. Bxd5 {[%emt 0:00:02]} O-O-O $146 {[%emt 0:00:20]} ({Predecessor:} 15... Bd6 16. O-O-O O-O-O {1-0 (30) Rocha,W (2315)-Oblitas Guerrero,C (2420) Sao Paulo 1998}) 16. Bg2 {[%emt 0:01:21]} Bd6 {[%emt 0:02:39]} 17. O-O-O {[%emt 0:03:59]} Bf4 {[%emt 0:05:19]} 18. Be3 {[%emt 0:11:39]} Bxe3+ {[%emt 0:01:42]} 19. Qxe3 {[%emt 0:00:04]} Nb6 {[%emt 0:00:33]} 20. Rhe1 {[%emt 0:00:54]} Rxd1+ {[%emt 0:00:51]} 21. Rxd1 {[%emt 0:00:01]} Rd8 {[%emt 0:00:08]} 22. Rxd8+ {[%emt 0:00:45]} Kxd8 {[%emt 0:00:57]} 23. b3 {[%emt 0:05:39]} Nc8 {[%emt 0:10:03]} 24. f4 {[%emt 0:10:26]} b6 {[%emt 0:01:50]} 25. Kb2 {[%emt 0:00:24]} Ne7 {[%emt 0:04:40]} 26. Qd4+ {[%emt 0:08:58]} Ke8 {[%emt 0:02:03]} 27. a4 {[%emt 0:00:58]} a5 $11 {[%emt 0:07:13]} 28. c3 {[%emt 0:04:50]} Nd5 {[%emt 0:01:48]} 29. Bxd5 {[%emt 0:13:30]} exd5 {[%emt 0:00:11]} 30. Qxd5 {[%emt 0:00:48]} Qxf4 {[%emt 0:02:29]} 31. Qb5+ {[%emt 0:00:11]} Ke7 {[%emt 0:00:14]} 32. Qe2+ {[%emt 0:00:09]} Kd8 {[%emt 0:01:02]} 1/2-1/2

[Event "Chile-ch Women 2019"]
[Site "Santiago Las Condes"]
[Date "2019.02.17"]
[Round "9.3"]
[White "Sanchez Tobar, Francisca Valenti"]
[Black "Gomez Barrera, Javiera Belen"]
[Result "0-1"]
[ECO "C20"]
[WhiteElo "1817"]
[BlackElo "1990"]
[Annotator "NA"]
[PlyCount "180"]
[EventDate "2019.02.12"]
[EventType "swiss"]
[EventCountry "CHI"]
[SourceTitle "playchess.com"]
[Source "ChessBase"]
[SourceQuality "1"]
[TimeControl "5400+30"]

1. e4 {[%emt 0:02:27]} e5 {[%emt 0:00:00]} 2. c4 {[%emt 0:00:19]} Nc6 {[%emt 0:02:30]} 3. Nc3 {[%emt 0:02:18]} Bc5 {[%emt 0:31:13]} 4. g3 {[%emt 0:04:37]} Qf6 {[%emt 0:15:22]} 5. Nf3 {[%emt 0:07:44]} Nd4 {[%emt 0:02:49]} 6. Bg2 {[%emt 0:09:59]} c6 {[%emt 0:01:13]} 7. O-O {[%emt 0:06:23]} Nxf3+ {[%emt 0:11:23]} 8. Bxf3 {[%emt 0:06:02]} d6 {[%emt 0:04:26]} 9. d3 {[%emt 0:05:40]} Bh3 {[%emt 0:09:25]} 10. Bg2 {[%emt 0:01:36]} Qe6 {[%emt 0:03:05]} 11. Be3 {[%emt 0:02:43]} Bxe3 {[%emt 0:06:31]} 12. fxe3 {[%emt 0:00:06]} Bxg2 {[%emt 0:00:32]} 13. Kxg2 {[%emt 0:00:03]} Nf6 {[%emt 0:00:19]} 14. Qf3 {[%emt 0:01:06]} Rd8 {[%emt 0:01:07]} 15. Qf5 {[%emt 0:06:15]} O-O {[%emt 0:00:39]} 16. Qg5 {[%emt 0:09:12]} h6 {[%emt 0:00:11]} 17. Qf5 {[%emt 0:01:15]} Rfe8 {[%emt 0:02:25]} 18. Rae1 {[%emt 0:02:20]} d5 {[%emt 0:01:54]} 19. exd5 {[%emt 0:04:09]} cxd5 {[%emt 0:00:12]} 20. Qxe6 {[%emt 0:00:04]} Rxe6 {[%emt 0:00:09]} 21. c5 {[%emt 0:13:19]} d4 {[%emt 0:01:43]} 22. exd4 {[%emt 0:00:02]} Rxd4 {[%emt 0:00:18]} 23. Rf3 {[%emt 0:03:37]} Nd7 {[%emt 0:00:46]} 24. Ne4 {[%emt 0:00:23]} Rc6 {[%emt 0:01:53]} 25. Ref1 {[%emt 0:06:18]} f6 {[%emt 0:00:19]} 26. Rc1 {[%emt 0:02:05]} b6 {[%emt 0:00:17]} 27. Rc3 {[%emt 0:02:01]} bxc5 {[%emt 0:00:46]} 28. b3 {[%emt 0:00:02]} a6 {[%emt 0:01:59]} 29. Rf2 {[%emt 0:00:13]} Rd5 {[%emt 0:00:29]} 30. Rfc2 {[%emt 0:00:50]} f5 {[%emt 0:00:13]} 31. Nd2 {[%emt 0:00:42]} Re6 {[%emt 0:00:18]} 32. Kf3 {[%emt 0:01:09]} g6 {[%emt 0:00:37]} 33. Ke3 {[%emt 0:00:13]} Kg7 {[%emt 0:00:23]} 34. Rc4 {[%emt 0:00:26]} Red6 {[%emt 0:00:23]} 35. R4c3 {[%emt 0:00:18]} Kf6 {[%emt 0:01:05]} 36. Nc4 {[%emt 0:00:29]} Re6 {[%emt 0:00:01]} 37. Nd2 {[%emt 0:00:09]} Rd4 {[%emt 0:00:54]} 38. Nf3 {[%emt 0:00:23]} g5 {[%emt 0:00:32]} 39. Kf2 {[%emt 0:00:42]} Rd5 {[%emt 0:00:05]} 40. Nd2 {[%emt 0:00:29]} h5 {[%emt 0:00:17]} 41. Kf3 {[%emt 0:01:05]} (41. h3 $17) 41... g4+ {[%emt 0:00:10]} 42. Ke3 {[%emt 0:00:32]} Rd4 {[%emt 0:00:20]} 43. Rc4 {[%emt 0:00:34] [#]} Rd5 $2 {[%emt 0:00:38]} ({Black should play} 43... h4 $1 $19 {[%mdl 512]} 44. gxh4 Red6 45. Rxd4 exd4+ 46. Kf2 Ne5) 44. R4c3 {[%emt 0:00:46]} Kg5 {[%emt 0:00:09]} 45. a3 {[%emt 0:00:12]} h4 {[%emt 0:00:28]} 46. Kf2 {[%emt 0:00:20]} hxg3+ {[%emt 0:00:35]} 47. hxg3 {[%emt 0:00:03]} Rd4 {[%emt 0:00:56]} 48. Rb2 {[%emt 0:01:15]} Red6 {[%emt 0:01:01]} 49. Ke2 {[%emt 0:00:14]} R6d5 {[%emt 0:00:54]} 50. Rbc2 {[%emt 0:00:38]} Rd6 {[%emt 0:00:24]} 51. Rb2 {[%emt 0:00:46]} Rh6 {[%emt 0:00:34]} 52. Nf1 {[%emt 0:00:10]} f4 {[%emt 0:00:29]} 53. Rbc2 {[%emt 0:00:48]} Kf5 {[%emt 0:00:34]} 54. Kf2 {[%emt 0:00:47]} Rhd6 {[%emt 0:00:31]} 55. Rd2 {[%emt 0:00:25]} Kg5 {[%emt 0:00:23]} 56. Ke2 $19 {[%emt 0:00:32]} Rh6 {[%emt 0:00:35]} 57. Kf2 {[%emt 0:00:21]} Rd5 {[%emt 0:00:31]} 58. Ke2 {[%emt 0:00:48]} Rh3 {[%emt 0:00:27]} 59. Kf2 {[%emt 0:00:29]} Rd4 {[%emt 0:00:13]} 60. Kg2 {[%emt 0:00:26]} Rh6 {[%emt 0:00:23]} 61. Rdc2 {[%emt 0:00:26]} Kf5 {[%emt 0:00:57]} 62. Kf2 {[%emt 0:00:23]} Rhd6 {[%emt 0:00:26]} 63. Rd2 {[%emt 0:00:24]} Kg5 {[%emt 0:00:07]} 64. Ke2 {[%emt 0:00:30]} Rh6 {[%emt 0:00:57]} 65. Kf2 {[%emt 0:00:11]} Rf6 {[%emt 0:00:28]} 66. Kg2 {[%emt 0:00:58]} Rfd6 {[%emt 0:00:05]} 67. Kf2 {[%emt 0:00:04]} Kf5 {[%emt 0:00:48]} 68. Ke2 {[%emt 0:00:13]} R4d5 {[%emt 0:00:30]} 69. Rdc2 {[%emt 0:00:58]} a5 {[%emt 0:00:18]} 70. Rd2 {[%emt 0:00:32]} Nf6 {[%emt 0:00:49]} 71. Rdc2 {[%emt 0:00:12]} Nd7 {[%emt 0:00:32]} 72. Rc1 {[%emt 0:00:53]} Rd4 {[%emt 0:00:29]} 73. R1c2 {[%emt 0:00:51]} Re6 {[%emt 0:00:13]} 74. Kf2 {[%emt 0:00:21]} Rh6 {[%emt 0:00:32]} 75. Kg2 {[%emt 0:00:23]} Rdd6 {[%emt 0:00:20]} 76. Kf2 {[%emt 0:00:27]} Rh3 {[%emt 0:00:29]} 77. Kg2 {[%emt 0:00:41]} Kg5 {[%emt 0:00:21]} 78. Kf2 {[%emt 0:00:28]} Rf6 {[%emt 0:00:29]} 79. Kg2 {[%emt 0:00:36]} Rfh6 {[%emt 0:00:18]} 80. a4 {[%emt 0:00:36]} Rh7 {[%emt 0:00:35]} 81. Rc1 {[%emt 0:00:27]} Rh8 {[%emt 0:01:07]} 82. R1c2 {[%emt 0:00:06]} R8h6 {[%emt 0:00:38]} 83. Rc1 {[%emt 0:00:08]} fxg3 {[%emt 0:00:29]} 84. Nxg3 {[%emt 0:00:17]} Rh2+ {[%emt 0:00:04]} 85. Kg1 {[%emt 0:00:17]} R6h3 {[%emt 0:00:57]} 86. Ne4+ {[%emt 0:01:27]} Kh5 {[%emt 0:00:28]} 87. R1c2 {[%emt 0:00:46]} Rh1+ {[%emt 0:00:18]} 88. Kg2 {[%emt 0:00:15]} Kh4 {[%emt 0:00:12]} 89. Kf2 {[%emt 0:00:34]} R3h2+ {[%emt 0:00:15]} 90. Ke3 {[%emt 0:00:35]} Re1+ {[%emt 0:00:08] Kd4 [%clk 0:00:00]} 0-1

[Event "Chile-ch Women 2019"]
[Site "Santiago Las Condes"]
[Date "2019.02.17"]
[Round "9.4"]
[White "Ruiz Olate, Emily Andrea"]
[Black "Urrutia Cordova, Camila"]
[Result "1-0"]
[ECO "B23"]
[WhiteElo "1892"]
[BlackElo "1694"]
[Annotator "NA"]
[PlyCount "53"]
[EventDate "2019.02.12"]
[EventType "swiss"]
[EventCountry "CHI"]
[SourceTitle "playchess.com"]
[Source "ChessBase"]
[SourceQuality "1"]
[TimeControl "5400+30"]

1. e4 {[%emt 0:00:16]} c5 {[%emt 0:00:00]} 2. Nc3 {[%emt 0:00:14]} d6 {[%emt 0:00:19]} 3. f4 {[%emt 0:00:18]} Nc6 {[%emt 0:00:39]} 4. Nf3 {[%emt 0:00:32]} g6 {[%emt 0:04:53]} 5. Bc4 {[%emt 0:01:10]} Bg7 {[%emt 0:00:29]} 6. O-O {[%emt 0:01:02]} e6 {[%emt 0:00:28]} 7. d3 {[%emt 0:09:50]} Nge7 {[%emt 0:00:21]} 8. Qe1 {[%emt 0:01:25]} Nd4 {[%emt 0:06:26]} 9. Nxd4 {[%emt 0:03:16]} cxd4 {[%emt 0:00:34]} 10. Ne2 {[%emt 0:01:19]} a6 {[%emt 0:01:15]} 11. a4 {[%emt 0:00:21]} Rb8 {[%emt 0:04:34]} 12. f5 {[%emt 0:12:55]} gxf5 {[%emt 0:03:59]} 13. exf5 {[%emt 0:02:20]} d5 {[%emt 0:02:17]} 14. Bb3 {[%emt 0:03:39]} exf5 {[%emt 0:02:07]} 15. Qg3 {[%emt 0:08:28]} Ng6 {[%emt 0:03:44]} 16. Qxb8 {[%emt 0:01:37]} Be5 {[%emt 0:00:04]} 17. Qa7 {[%emt 0:00:06]} Qh4 {[%emt 0:00:52]} 18. g3 {[%emt 0:00:40]} Qh3 {[%emt 0:01:13]} 19. Nf4 {[%emt 0:01:37]} Qg4 {[%emt 0:02:14]} 20. Bxd5 {[%emt 0:00:38]} Nh4 {[%emt 0:02:53]} 21. Ng2 {[%emt 0:01:45]} Rg8 {[%emt 0:03:33]} 22. Nxh4 {[%emt 0:05:10]} Qxh4 {[%emt 0:00:53]} 23. Bf4 {[%emt 0:09:15]} Bxf4 {[%emt 0:01:11]} 24. Rae1+ {[%emt 0:01:32]} Kd7 {[%emt 0:01:00]} 25. Bxb7 {[%emt 0:04:52]} Be3+ {[%emt 0:01:16]} 26. Rxe3 {[%emt 0:00:29]} dxe3 {[%emt 0:00:24]} 27. Bg2+ {[%emt 0:00:10]} 1-0